Cogmind - Beta 17 @@@ ROGUE MODE // 2026.08.12 @ 17:02:12 Player: Blaj Result: Destroyed by A7-OQ8(R) with Subdweller Machine Gun Performance ------------- Evolutions (0) 0 Regions Visited (2) 400 Robots Destroyed (50) 250 Value Destroyed (1251) 1251 Prototype IDs (1) 20 Alien Tech Used (0) 0 Bonus (0) 0 TOTAL SCORE: 1921 Bonus ------- None Cogmind --------- Core Integrity 0/250 Matter 229/300 Energy 173/180 System Corruption 0% Temperature Cool (0) Movement Rolling (110) Location -10/Subcaves Parts ------- > --- POWER (1) -------- Meta Core > --- PROPULSION (2) --- Subdweller Monowheel Subdweller Monowheel > --- UTILITY (2+1) ---- Medium Storage Unit Hardened Light Armor Plating (+) Hardened Light Armor Plating > --- WEAPON (2+1) ----- Battle Rifle (+) Makeshift Hammer > --- INVENTORY (10) --- Ion Engine Light Treads Improved Aluminum Leg Large Storage Unit Peak State ------------ > --- POWER ------------ Meta Core > --- PROPULSION ------- Improved Aluminum Leg Improved Aluminum Leg Improved Aluminum Leg > --- UTILITY ---------- Medium Storage Unit Medium Armor Plating Hardened Light Armor Plating > --- WEAPON ----------- Spread Laser Battle Rifle Makeshift Hammer > --- INVENTORY -------- Ion Engine Light Treads Subdweller Monowheel Large Storage Unit Hardened Light Armor Plating Grenade Launcher [Rating: 32] Favorites ----------- Power Ion Engine Engine Ion Engine Power Core Meta Core Propulsion Improved Aluminum Leg Leg Improved Aluminum Leg Wheel Subdweller Monowheel Utility Medium Storage Unit Device Seismic Detector Storage Medium Storage Unit Protection Medium Armor Plating Weapon Spread Laser Energy Gun Spread Laser Energy Cannon Subdweller Beam Cannon Ballistic Gun Battle Rifle Launcher Grenade Launcher Impact Weapon Makeshift Hammer Build | -11 -10 -10 ------- Run | Yrd Mat Sub Slots Evolved . | . . . Power . | . . . Propulsion . | . . . Utility . | . . . Weapon . | . . . Parts Attached 28 | 1 15 12 Power 2 | . 1 1 Engine 1 | . 1 . Core 1 | . . 1 Reactor . | . . . Propulsion 9 | . 5 4 Treads . | . . . Leg 7 | . 5 2 Wheel 2 | . . 2 Hover . | . . . Flight . | . . . Utility 7 | 1 3 3 Device 1 | 1 . . Storage 1 | . 1 . Processor . | . . . Hackware . | . . . Protection 5 | . 2 3 Artifact . | . . . Weapon 10 | . 6 4 Energy Gun 4 | . 4 . Energy Cannon 1 | . . 1 Ballistic Gun 3 | . 1 2 Ballistic Cannon . | . . . Launcher 1 | . 1 . Special Weapon . | . . . Impact Weapon 1 | . . 1 Slashing Weapon . | . . . Piercing Weapon . | . . . Special Melee Weapon . | . . . Unidentified Prototypes 1 | . . 1 Parts Lost 10 | . 1 9 Power 1 | . 1 . Propulsion 3 | . . 3 Utility 3 | . . 3 Weapon 3 | . . 3 Highest Loss Streak 4 | . 1 4 To Critical Strikes . | . . . Average Backups 8 | 6 9 8 Power . | 1 . . Propulsion 3 | 4 3 2 Utility 3 | . 3 3 Weapon 1 | 1 . 1 Tool/Special . | . . . Unused Backups 9 | . 6 3 Power . | . . . Propulsion 6 | . 4 2 Utility 3 | . 2 1 Weapon . | . . . Tool/Special . | . . . Average Slot Usage (%) 98 | . 99 97 Engine 11 | . 13 9 Core 2 | . . 3 Leg 26 | . 28 25 Wheel 1 | . . 1 Device 3 | . 3 3 Storage 13 | . 14 12 Protection 11 | . 10 12 Energy Gun 15 | . 23 11 Energy Cannon 4 | . . 7 Ballistic Gun 2 | . 3 2 Launcher 1 | . 1 1 Impact Weapon 3 | . . 4 Peak Build Rating 32 | 7 13 32 Average Rating 15 | 6 9 18 On Entrance 8 | 6 7 13 Avg Prop Armor Cover (%) . | . . . Naked Turns . | . . . Heaviest Build 36 | 13 28 36 Greatest Support 40 | 20 26 40 Greatest Overweight (x) 1 | . 1 1 Average Overweight (x) . | . . . Largest Inventory Capacity 10 | 8 10 10 Average Capacity 9 | 8 9 10 Most Carried 10 | 6 10 10 Average Carried 8 | 6 9 8 Final Capacity 10 | 8 10 10 Final Carried 10 | 6 10 4 Class Distribution -------------------- 100% | Mutant Dominant Class ---------------- Mutant | -10/Materials Mutant | -10/Subcaves Resources | -11 -10 -10 ----------- Run | Yrd Mat Sub Matter Collected 920 | 231 340 349 Remotely . | . . . Salvage Created 1398 | 107 720 571 Parts 86 | 3 52 31 Haulers Intercepted 1 | . 1 . Recyclers Shooed . | . . . Parts Field Recycled . | . . . Retrieved Matter . | . . . Parts Self-Destructed 11 | . . 11 Prevented . | . . . Parts Restored . | . . . Kills | -11 -10 -10 ------- Run | Yrd Mat Sub Combat Hostiles Destroyed 36 | . 17 19 Melee 2 | . . 2 Guns 8 | . 5 3 Cannons 4 | . . 4 AOE 17 | . 12 5 Classes Destroyed 11 | 2 7 2 Worker 5 | . 5 . Builder 1 | . 1 . Tunneler 2 | 1 1 . Hauler 1 | . 1 . Recycler 1 | 1 . . Operator 1 | . 1 . Watcher 3 | . 3 . Swarmer 9 | . 3 6 Grunt 14 | . 14 . Artisan 1 | . . 1 Subdweller 13 | . . 13 Best Kill Streak 8 | 2 8 3 Combat Bots Only 6 | . 6 3 Max Kills in Single Turn 2 | 1 2 1 Gunslinging . | . . . Exploded 2 | . 2 1 Melee 1 | . . 1 Uniques/NPCs Destroyed . | . . . Combat | -11 -10 -10 -------- Run | Yrd Mat Sub Hostile Shots Fired 147 | . 43 104 Missed 41 | . 14 27 Hits 106 | . 29 77 Projectile 106 | . 29 77 AOE 4 | . . 4 Critical Strikes 1 | . . 1 Damage Taken 2090 | 22 398 1670 Core 258 | . 46 212 Absorbed by Shields . | . . . Core Remaining (%) 100 | 100 . . Volleys Fired 94 | 7 47 40 Largest 2 | 2 2 2 Hottest 145 | 60 130 145 Shots Fired 153 | 14 81 58 Gun 108 | 14 68 26 Cannon 17 | . . 17 Launcher 28 | . 13 15 Special . | . . . Kinetic 17 | 7 5 5 Thermal 50 | . 12 38 Explosive 28 | . 13 15 Electromagnetic 58 | 7 51 . Robot Hit Streak 17 | 3 17 13 Robot Miss Streak 6 | 2 4 6 Penetration Max . | . . . Secondary Targets . | . . . Shots Hit Robots 115 | 10 47 58 Core Hits 94 | 3 56 35 Critical Kills 2 | . . 2 Critical Parts Destroyed 3 | . 1 2 Critical Strikes 8 | . 1 7 Meltdown 2 | . . 2 Destroy 1 | . 1 . Smash 5 | . . 5 Melee Attacks 66 | . . 66 Impact 66 | . . 66 Slashing . | . . . Piercing . | . . . Sneak Attacks 1 | . . 1 Combat Hostiles . | . . . Follow-up Attacks . | . . . Damage Inflicted 4096 | 157 1455 2484 Guns 1066 | 129 703 234 Cannons 301 | . . 301 Explosions 1499 | 28 752 719 Melee 1230 | . . 1230 Ramming . | . . . Kinetic 154 | 74 41 39 Thermal 721 | 28 197 496 Explosive 1451 | . 732 719 Electromagnetic 540 | 55 485 . Impact 1230 | . . 1230 Slashing . | . . . Piercing . | . . . Highest Corruption . | . . . Average Corruption . | . . . Corruption Purged . | . . . Corruption Blocked . | . . . Overload Shots . | . . . Overflow Damage 263 | . . 263 Projectiles . | . . . Explosions 28 | . . 28 Melee 235 | . . 235 Knockbacks 8 | . . 8 Impact 8 | . . 8 Kinetic . | . . . Secondary . | . . . Self-Inflicted Damage 98 | 22 63 13 Shots 5 | 1 3 1 Rammed . | . . . Targets Rammed . | . . . Kicked . | . . . Crushed . | . . . Highest Temperature 272 | 12 272 272 Average Temperature 63 | 12 63 64 Received Heat Transfer 833 | . 180 653 Siege Activations . | . . . Martial Activations . | . . . Shielding Activations . | . . . Robots Disrupted . | . . . Combat Hostiles . | . . . Robots Corrupted 5 | . 1 4 Combat Hostiles 3 | . . 3 Parts Fried 4 | . 2 2 Impact Corruptions 9 | . . 9 Robots Melted 2 | . . 2 Combat Hostiles 2 | . . 2 Parts Melted 4 | . . 4 Heat Transferred 907 | . 255 652 Parts Sabotaged . | . . . Parts Stolen . | . . . Parts Stripped . | . . . Power Chain Reactions 2 | 1 1 . Alert | -11 -10 -10 ------- Run | Yrd Mat Sub Maximum Alert Level 1 | . 1 . Low Security (%) 64 | 100 63 . Level 1 35 | . 36 . Level 2 . | . . . Level 3 . | . . . Level 4 . | . . . Level 5 . | . . . High Security . | . . . Max Security . | . . . Peak Influence 305 | 5 305 . Initial 3 | . 3 . Average 125 | 2 129 . Influence Increases 840 | 10 655 175 Destroy 0b10 Robot/C 460 | . 340 120 Destroy 0b10 Robot/NC 70 | 10 60 . Destroy Leader 88 | . 78 10 Successful Hack 44 | . 44 . Disable Machine 45 | . 45 . Destroy Structure 73 | . 73 . Lose Combat Pursuer 60 | . 15 45 Influence Decreases 840 | 5 423 412 Entered New Map 116 | . 2 114 Time Decay 674 | 5 411 258 Lost Part 50 | . 10 40 Squads Dispatched 4 | . 4 . Investigation 3 | . 3 . Extermination . | . . . Reinforcement 1 | . 1 . Assault . | . . . Garrison . | . . . Intercept . | . . . Searches Triggered . | . . . Construction Impeded . | . . . Haulers Reinforced . | . . . Active Scanning Responses . | . . . Cargo Convoy Interrupts . | . . . Stealth | -11 -10 -10 --------- Run | Yrd Mat Sub Distress Signals 1 | . 1 . Communications Jammed . | . . . Distress Signals . | . . . Times Spotted 49 | . 26 23 Peak Tracking Total 4 | . 4 4 Tactical Retreats 3 | . 1 2 Traps | -11 -10 -10 ------- Run | Yrd Mat Sub Traps Triggered 2 | . 1 1 Indirectly . | . . . Trap Hack Attempts . | . . . Triggered . | . . . Disarmed . | . . . Reprogrammed . | . . . Reused . | . . . Traps Extracted . | . . . Installed . | . . . Triggered . | . . . Machines | -11 -10 -10 ---------- Run | Yrd Mat Sub Machines Disabled 3 | . 3 . Max in Single Turn 1 | . 1 . Machines Repaired . | . . . Machines Dismantled . | . . . Machines Sabotaged . | . . . Overloaded Fab Kills . | . . . Hacking | -11 -10 -10 --------- Run | Yrd Mat Sub Machines Accessed 5 | . 5 . Terminals 5 | . 5 . Fabricators . | . . . Repair Stations . | . . . Recycling Units . | . . . Scanalyzers . | . . . Garrison Access . | . . . Total Hacks 13 | . 13 . Successful 8 | . 8 . Failed 5 | . 5 . Catastrophic 1 | . 1 . Database Lockouts . | . . . Manual 6 | . 6 . Terminals 13 | . 13 . Fabricators . | . . . Repair Stations . | . . . Recycling Units . | . . . Scanalyzers . | . . . Garrison Access . | . . . Terminal Hacks 6 | . 6 . Locate Traps 4 | . 4 . Hauler Manifests 1 | . 1 . Registered Components 1 | . 1 . Fabricator Hacks . | . . . Repair Station Hacks . | . . . Recycling Unit Hacks . | . . . Scanalyzer . | . . . Garrison Access Hacks . | . . . Unauthorized Hacks 2 | . 2 . Terminals 2 | . 2 . Assimilate 1 | . 1 . Operators 1 | . 1 . Fabricators . | . . . Repair Stations . | . . . Recycling Units . | . . . Scanalyzers . | . . . Garrison Access . | . . . Data Cores Recovered . | . . . Used . | . . . Hacking Detections 4 | . 4 . Full Trace Events 1 | . 1 . Feedback Events . | . . . Feedback Blocked . | . . . Robot Schematics Acquired . | . . . Robots Built . | . . . Authchips . | . . . Time . | . . . Total Robot Build Rating . | . . . Part Schematics Acquired . | . . . Parts Built . | . . . Authchips . | . . . Time . | . . . Total Part Build Rating . | . . . Part Studies Acquired . | . . . Parts Repaired . | . . . Time . | . . . Parts Recycled . | . . . Recycled Matter . | . . . Retrieved Matter . | . . . Retrieved Components . | . . . Parts Scanalyzed . | . . . Part Schematics Acquired . | . . . Parts Damaged . | . . . Bothacking | -11 -10 -10 ------------ Run | Yrd Mat Sub Used RIF Installer . | . . . Robots Hacked . | . . . Non-combat . | . . . Combat . | . . . Robot Hacks Applied . | . . . Relay Couplers Released . | . . . Fabnet Peak Effective % . | . . . Robots Rewired . | . . . Allies Hacked . | . . . Hacks Repelled . | . . . Allies | -11 -10 -10 -------- Run | Yrd Mat Sub Total Allies . | . . . Largest Group . | . . . Highest-Rated Group . | . . . Highest-Rated Ally . | . . . Total Orders . | . . . Ally Attacks . | . . . Total Damage . | . . . Kills . | . . . Allies Corrupted . | . . . Allies Melted . | . . . Intel | -11 -10 -10 ------- Run | Yrd Mat Sub Active Infowar (turns) 919 | 10 296 613 Seismic 919 | 10 296 613 Robot Analysis Total . | . . . Derelict Logs Recovered 2 | . . 2 Drone Launches . | . . . Drone Recoveries . | . . . Exploration | -11 -10 -10 ------------- Run | Yrd Mat Sub Turns Passed 3444 | 39 1226 2179 Spaces Moved 1645 | 14 535 1096 Core . | . . . Treads . | . . . Legs 1513 | 14 535 964 Wheels 132 | . . 132 Hover . | . . . Flight . | . . . Fastest Speed 110 | 120 120 110 Average Speed 155 | 120 163 151 Slowest Speed 190 | 120 190 190 Overloaded Moves . | . . . Propulsion Burnouts . | . . . Robots Hopped . | . . . Potential Cave-ins . | . . . Cave-ins Triggered . | . . . Exploration Rate (%) 55 | 3 93 71 Regions Visited 2 Branch Regions 1 Pre-discovered Areas . | . . . Known Exits Taken . | . . . Unknown Exits Taken 2 | 1 1 . Scrap Searched 5 | . . 5 Spaces Dug 6 | . . 6 Terrain Destroyed 139 | 1 83 55 Melee 6 | . . 6 Projectile . | . . . AOE 133 | 1 83 49 Terrain Rammed . | . . . Walls Destroyed . | . . . Machines Disabled . | . . . Actions | -11 -10 -10 --------- Run | Yrd Mat Sub Total 2314 | 21 809 1484 Wait 428 | . 185 243 Move 1643 | 13 534 1096 Hop . | . . . Pick Up 10 | . 7 3 Fast Attach 9 | 1 4 4 Attach 11 | . 1 10 Detach 6 | . 2 4 Swap 30 | . 15 15 Drop 17 | . 14 3 Fire 94 | 7 47 40 Melee 66 | . . 66 Ram . | . . . Kick . | . . . Crush . | . . . Escape Stasis . | . . . Rewire . | . . . Trap . | . . . Miscellaneous . | . . . Route ------- -11/Scrapyard -10/Materials (discovered 5 exits: [*Mat x3] / [*Min] / [*Sub]) -10/Subcaves (discovered 2 exits: [*Mat x2]) History --------- Turn | Location | Event 13 | -11/Scrapyard | Discovered new exit (range 3) 40 | -11/Scrapyard | Entered Materials 173 | -10/Materials | Discovered new exit (range 16) 306 | -10/Materials | Discovered new exit (range 5) 312 | -10/Materials | Build established: Mutant 614 | -10/Materials | Discovered new exit (range 11) 818 | -10/Materials | Discovered new exit (range 15) 1003 | -10/Materials | Discovered new exit (range 7) 1266 | -10/Materials | Entered Subcaves 1267 | -10/Subcaves | Approached by a straggling Scientist 1311 | -10/Subcaves | A swath of the cavern ceiling suddenly collapsed 1365 | -10/Subcaves | Learned location of 2 exits from Materials 1563 | -10/Subcaves | Shifting Twisted Machinery released Mak. Hammer 1571 | -10/Subcaves | Shifting Twisted Machinery released Sub. Beam Cannon 2045 | -10/Subcaves | Shifting Twisted Machinery released Mak. Thermal Plating 2052 | -10/Subcaves | Discovered new exit (range 14) 2055 | -10/Subcaves | Shifting Twisted Machinery released Spk. Treads 2080 | -10/Subcaves | Shifting Twisted Machinery released Battle Rifle 2088 | -10/Subcaves | Shifting Twisted Machinery released Flamer 2217 | -10/Subcaves | Discovered new exit (range 13) 2698 | -10/Subcaves | A Subdweller sparked back to life 2698 | -10/Subcaves | A Subdweller sparked back to life 2722 | -10/Subcaves | Found Prototype Power Core 2722 | -10/Subcaves | Identified Meta Core 2723 | -10/Subcaves | Attached Meta Core, gained temporary slots: Propulsion, Utility, Weapon 2743 | -10/Subcaves | Lost 3 parts (1n1u1w) 2910 | -10/Subcaves | Core integrity fell below 50% 3242 | -10/Subcaves | Core integrity fell below 20% 3284 | -10/Subcaves | Lost 4 parts (2n1u1w) 3445 | -10/Subcaves | Destroyed by A7-OQ8(R) with Subdweller Machine Gun Last Messages --------------- 03307_ Found 66 Matter. 03406_ 8L-1RP(R) destroyed. 03413_ Grenade Launcher destroyed. 03413_ Destroyed Grenade Launcher. 03419_ 7Y-S6Z(R) suffers critical hit (Smash). 03419_ Destroyed Sub. Optics. 03419_ 7Y-S6Z(R) system corrupted by crushing effect. 03419_ 7Y-S6Z(R) knocked back. 03419_ 7Y-S6Z(R) misfires. 03420_ 7Y-S6Z(R) system terminally corrupted. 03422_ Acquired 24 matter. 03425_ The unstable cave ceiling collapses. 03439_ Destroyed Disposable Heat Sink. 03439_ A7-OQ8(R) system corrupted by crushing effect. 03439_ A7-OQ8(R) knocked back. 03439_ A7-OQ8(R) misfires. 03442_ A7-OQ8(R) knocked back. 03445_ A7-OQ8(R) suffers critical hit (Smash). Map ----- +----------------------------------------------------+ | ????????????????" # " ##?????## #?????????? | | ??????????????????##?#" #?###### ##????????? | | ?????????????????????#"" #### #????????? | | ?????????????????????##" ## ##????????? | | ???????????????????###"" ##?????????? | | ??????????????????# " ### #??????????? | | ??????????????????# ## #####??????????? | | ??????????????????# #### #?????????????? | | ??????????????????### ??#### ##?????????????? | | ????????????????????### ?????# ##?????????????? | | ??????????????????????####???### ###???????????? | | ????????????????????????????##" #???????????? | | ????????????????????????????# #????###????? | | ??????????????????????????### #????# ##???? | | ??????????????????????????# # ##??## ##??? | | ??????????????????????????# #??# #### | | ????????????????????????### #??# # | | ????????????? ?????????## #??# | | ???????????? ###????## #### | | ???????????? ??## ## ## | | ???????????? ## # ## | | ??????????? ## # | | ???????????? ### ## | | ???????????????# ## ####? | | ??????????????????# ### #"# #???? | | ??????????????????## @ #?## ## ###### #??? | | ???????????????????## R #########????# #??? | | ????????????????????#### ##????????????####??? | | ???????????????????????## ####???????????????????? | | ????????????????????????###??????????????????????? | | ?????????????????????????????????????????????????? | | ?????????????????????????????????????????????????? | | ?????????????????????????????????????????????????? | | ?????????????????????????????????????????????????? | | ?????????????????????????????????????????????????? | | ?????????????????????????????????????????????????? | | ?????????????????????????????????????????????????? | | ?????????????????????????????????????????????????? | | ?????????????????????????????????????????????????? | | ?????????????????????????????????????????????????? | | ?????????????????????????????????????????????????? | | ?????????????????????????????????????????????????? | | ?????????????????????????????????????????????????? | | ?????????????????????????????????????????????????? | | | | | | | | | | | | | +----------------------------------------------------+ Best States ------------- Heat Dissipation 25 Energy Generation 17 Energy Capacity 250 Matter Stores 300 Matter Capacity 300 Sight Range 16 Terrain Scan Density 10 Armor Coverage 375 Evasion (%) 55 Item Schematics ----------------- None Robot Schematics ------------------ None Fabricated ------------ Nothing Repaired ---------- Nothing Studied --------- None Alien Tech Used ----------------- None Achievements -------------- None Challenges ------------ None Game ------ Seed SchematicGuidanceArmor Manual? 0 Play Time 00:29:54 Cumulative 266.2 hours Start 2026.08.12 @ 16:31:01 End 2026.08.12 @ 17:02:12 Sessions 1 Manual Loads 0 Difficulty Rogue Special Mode None Game No. 71 Rogue 71 Adventurer 0 Explorer 0 Win Type - Total 10 Types 5/0/2/0/1/1/0/1/0/0 Lore% 65 Gallery% 71 Achievement% 53 Wizard Run 0 Options --------- Layout 2 ASCII 0 Keyboard 1 Movement Vi Keybinds 0 Fullscreen 1 Font 24/Smallcaps Map View 50x44 Zoom Use 0% Tactical HUD 1 Map Filters NONE Filters NONE Steam 1 RUN: a580fc08-3498-4336-a27f-a502a66fd556